Workbook

Sheet Input Sheet
A2: FOR OFFICE USE ONLY
A3: Franklin Street
A4: Duplexes Palm Coast
B5: Inputs
B7: Single Family | C7: Lot 2 | D7: Lot 3 | E7: Lot 4 | F7: Lot 5 | G7: Lot 6 | H7: Lot 7 | I7: Total
A8: Gross SF | B8: 2796
A9: Square Feet (AC) | B9: 2400 | C9: 0 | D9: 0 | H9: 0 | I9: =SUM(B9:H9)/7 -> 342.8571429
A10: Gross Sales Price | B10: 285000 | C10: 0 | D10: 0 | E10: 0 | F10: 0 | G10: 0 | H10: 0 | I10: =SUM(B10:H10) -> 285000
A11: Marketing and Closing % (COGS) | B11: 0.06 | C11: =B11 -> 0.06 | D11: =C11 -> 0.06 | E11: =D11 -> 0.06 | F11: =E11 -> 0.06 | G11: =F11 -> 0.06 | H11: =D11 -> 0.06 | I11: =SUM(B11:H11)/7 -> 0.06
A12: COGS | B12: =B11*B10 -> 17100 | C12: =C11*C10 -> 0 | D12: 0 | E12: 0 | F12: 0 | G12: 0 | H12: 0 | I12: =SUM(B12:H12) -> 17100
A13: Net Sales Proceeds | B13: =B10-B12 -> 267900 | D13: =D10-D12 -> 0 | E13: 0 | F13: 0 | G13: 0 | H13: 0
A14: Costs
A15: Land / Purchase | B15: 27000 | C15: 0 | D15: 0 | E15: 0 | F15: 0 | G15: 0 | H15: 0 | I15: =SUM(B15:H15) -> 27000
A16: Land Improvements | B16: 0
A17: Vertical | B17: 163557
A18: Inspections | B18: 750
A19: Appraisal/Survey/Other | B19: 725
A20: Legal (J RILEY WILLIAMS) | B20: 685
A21: MS Closing Costs | B21: =750+650+30 -> 1430
A22: Other: Survey's & Builders Risk | B22: 0 | C22: 0 | D22: =C22 -> 0 | E22: 0 | F22: 0 | G22: 0 | H22: 0 | I22: 0
A23: Total Costs before Debt | B23: =SUM(B15:B22) -> 194147 | C23: 0 | D23: 0 | E23: 0 | F23: 0 | G23: 0 | H23: 0 | I23: 27000
A25: Profit before Debt | B25: =B13-B23 -> 73753 | D25: 0 | E25: 0 | F25: 0 | G25: 0 | H25: 0
A26: Margin | B26: =B25/B13 -> 0.2753004853
L27: 0.06 | M27: 0.05 | N27: 0.04
A28: Debt | K28: Early Payoff | L28: 7 | M28: 6 | N28: 3
A29: Months of Interest Reserve | B29: 12 | C29: =B29 -> 12 | D29: =C29 -> 12 | E29: =D29 -> 12 | F29: =E29 -> 12 | G29: =F29 -> 12 | H29: =D29 -> 12 | I29: =SUM(B29:H29)/7 -> 12 | K29: Original cost | L29: =$B$37+$B$38 -> 19609.42458 | M29: =$B$37+$B$38 -> 19609.42458 | N29: 19609.42458
A30: Interest Rate | B30: 0.0675 | C30: =B30 -> 0.0675 | D30: =C30 -> 0.0675 | E30: =D30 -> 0.0675 | F30: =E30 -> 0.0675 | G30: =F30 -> 0.0675 | H30: =D30 -> 0.0675 | I30: 0.0675 | K30: Actual cost | L30: =L37+L38 -> 18558.91969 | M30: =M37+M38 -> 15640.85056 | N30: 10621.77165
A31: Points | B31: 0.0375 | C31: =B31 -> 0.0375 | D31: 0.0375 | E31: 0.0375 | F31: 0.0375 | G31: 0.0375 | H31: =D31 -> 0.0375 | I31: 0.0375 | K31: Total savings | L31: =($B$37+$B$38)-L30 -> 1050.504888 | M31: =($B$37+$B$38)-M30 -> 3968.574022 | N31: =($B$37+$B$38)-N30 -> 8987.652933
A32: Total Factor | B32: =B30/12*B29+B31 -> 0.105 | C32: 0.105 | D32: 0.105 | E32: 0.105 | F32: 0.105 | G32: 0.105 | H32: 0.105
K33: Interest Portion | L33: =L31-L34 -> 1050.504888 | M33: =M31-M34 -> 2101.009777 | N33: 5252.524441
A34: Borrower Equity | B34: 27000 | K34: Points Portion | L34: =0 -> 0 | M34: =L38-M38 -> 1867.564246 | N34: =(L38-N38) -> 3735.128492
A35: Net Loan | B35: =B23-B34 -> 167147 | C35: =C23 -> 0 | D35: 0 | E35: 0 | F35: 0 | G35: 0 | H35: 0 | I35: =SUM(B35:H35) -> 167147
A36: Loan with Interest & Points | B36: =B35/(1-B32) -> 186756.4246 | K36: Total | L36: =$B$35+L37+L38 -> 185705.9197 | M36: =$B$35+M37+M38 -> 182787.8506 | N36: 177768.7716
A37: Interest | B37: =B36*(B30/12*B29) -> 12606.05866 | K37: Interest | L37: =($B$37/$B$29)*L28 -> 7353.534218 | M37: =($B$37/$B$29)*M28 -> 6303.02933 | N37: =($B$37/$B$29)*N28 -> 3151.514665
A38: Points | B38: =B36*B31 -> 7003.365922 | K38: Points | L38: =$B$38*(L27/$B$31) -> 11205.38547 | M38: =$B$38*(M27/$B$31) -> 9337.821229 | N38: =$B$38*(N27/$B$31) -> 7470.256983
A39: Recording, Stamps, Intangible & Title | B39: 0.0135
A40: Recording, Stamps, Intangible & Title | B40: =B36*B39 -> 2521.211732
A41: Loan, Interest, Points and Fees | B41: =+B40+B36 -> 189277.6363
A42: Interest and Points (% of Sales) | B42: =(B37+B38)/B10 -> 0.06880499853 | C42: =C35/SUM(1-SUM(C30/12*C29))-C35 -> 0 | D42: 0 | E42: 0 | F42: 0 | G42: 0 | H42: 0 | I42: =SUM(C42:H42) -> 0
C43: =#REF!-C35-C42 ->  | D43: =#REF!-D35-D42 ->  | E43: =#REF!-E35-E42 ->  | F43: =#REF!-F35-F42 ->  | G43: =#REF!-G35-G42 ->  | H43: =#REF!-H35-H42 ->  | I43: =SUM(B43:H43) -> 
A45: Summary | C45: =C7 -> Lot 2 | D45: Lot 3 | E45: Lot 4 | F45: Lot 5 | G45: Lot 6 | H45: Lot 7 | I45: =D47 -> 
A46: Loan before Interest & Points | B46: =B35 -> 167147 | C46: =C35 -> 0 | D46: 0 | E46: 0 | F46: 0 | G46: 0 | H46: 0 | I46: 167147
A47: Toal Loan after Interest, Points & Fees | B47: =B41 -> 189277.6363 | C47: =#REF! ->  | D47: =#REF! ->  | E47: =#REF! ->  | F47: =#REF! ->  | G47: =#REF! ->  | H47: =#REF! ->  | I47: =I35+#REF! -> 
A48: Margin to Net Sales | B48: =B47/B13 -> 0.7065234651 | C48: =#REF!/C13 ->  | D48: =#REF!/D13 ->  | E48: =#REF!/E13 ->  | F48: =#REF!/F13 ->  | G48: =#REF!/G13 ->  | H48: =#REF!/H13 ->  | I48: =#REF!/I10 -> 
A49: Builder Equity | B49: =B23-B35 -> 27000 | C49: =C23-C35 -> 0 | D49: =D23-D35 -> 0 | H49: =H23-H35 -> 0 | I49: =SUM(B49:H49) -> 27000
A50: Equity as a Percent of Total Costs | B50: =B49/B23 -> 0.13906988 | I50: 1
A51: Mainsail LTV | B51: =B47/B10 -> 0.6641320572 | C51: =C47/C13 ->  | I51: =I47/I10 -> 
A52: LTC | B52: =B46/(B23) -> 0.86093012 | J52: <=solve to 95% or less
A54: Per Foot/Acre Data | B54: =B9 -> 2400 | C54: =C45 -> Lot 2 | D54: Lot 3 | E54: Lot 4 | F54: Lot 5 | G54: Lot 6 | H54: Lot 7 | I54: Total
A55: Sales Price | B55: =B10/B9 -> 118.75 | I55: =SUM(B55:H55)/4 -> 
A56: Cost to Build (ex. Land) | B56: =B17/B54 -> 68.14875 | C56: =#REF!/C9 ->  | D56: =#REF!/D9 ->  | E56: =#REF!/E9 ->  | F56: =#REF!/F9 ->  | G56: =#REF!/G9 ->  | H56: =#REF!/H9 ->  | I56: =SUM(B56:H56)/4 -> 
A57: Cost to Build w/Land & Closing Costs | B57: =B23/B54 -> 80.89458333
A58: Profit | B58: =B55-B57 -> 37.85541667 | C58: =C23/C9 ->  | I58: =SUM(B58:H58)/4 -> 
A60: MLS Market Data | B60: =B54 -> 2400 | C60: =C54 -> Lot 2 | D60: =D54 -> Lot 3 | H60: =H54 -> Lot 7
A61: Average Sales Price | B61: 385000
A62: Average Price Per Foot | B62: 130
A63: Average Size (S.F.) | B63: 2900
A64: Percent of Asking Price | B64: 1
A65: Average Days on Market | B65: 90
A66: Number of houses sold last 360 days | B66: 45

Sheet Summary Sheet
F2: Five Mile
B3: Builder | C3: ='Input Sheet'!A4 -> Duplexes Palm Coast | F3: Builder
B4: ='Input Sheet'!A3 -> Franklin Street | F4: =B4 -> Franklin Street
B5: Square Feet | C5: ='Input Sheet'!B8 -> 2796 | F5: Square Feet | G5: =C5 -> 2796
B6: Reserve Period | C6: ='Input Sheet'!B29 -> 12 | F6: Reserve Period | G6: =C6 -> 12
B7: Interest Rate | C7: ='Input Sheet'!B30 -> 0.0675 | F7: Interest Rate | G7: =C7 -> 0.0675
B8: Points | C8: ='Input Sheet'!B31 -> 0.0375 | F8: Points | G8: =C8 -> 0.0375
B11: Appraised Value | C11: ='Input Sheet'!B10 -> 285000 | F11: Appraised Value | G11: =C11 -> 285000
B12: Cost of sales % | C12: ='Input Sheet'!B11 -> 0.06 | F12: cost of sales % | G12: =C12 -> 0.06
B13: COGS | C13: =C11*-C12 -> -17100 | F13: COGS | G13: =G11*-G12 -> -17100
B14: Net Revenue | C14: =C11+C13 -> 267900 | F14: Net Revenue | G14: =G11+G13 -> 267900
B16: Lot | C16: ='Input Sheet'!B15 -> 27000 | F16: Purchase | G16: =C16 -> 27000
B17: Vertical | C17: ='Input Sheet'!B17 -> 163557 | F17: Improvements | G17: =C17 -> 163557
B18: Sales | C18: ='Input Sheet'!B19 -> 725 | F18: City and County | G18: 0
B19: Legal MS | C19: ='Input Sheet'!B20 -> 685 | F19: Sales | G19: =C18 -> 725
B20: Closing Misc | C20: ='Input Sheet'!B21 -> 1430 | F20: Legal MS | G20: 685
B21: Recording/Stamps | C21: ='Input Sheet'!B40 -> 2521.211732 | F21: Closing Misc | G21: 1430
B22: Interest | C22: ='Input Sheet'!B37 -> 12606.05866 | F22: Recording/Stamps | G22: 2521.211732
B23: Points | C23: ='Input Sheet'!B38 -> 7003.365922 | F23: Interest payments | G23: 12606.05866
B24: Total | C24: =SUM(C16:C23) -> 215527.6363 | F24: Points | G24: 7003.365922
F25: Total | G25: =SUM(G16:G24) -> 215527.6363
B26: Profit | C26: =C14-C24 -> 52372.36369
F27: Profit | G27: =G14-G25 -> 52372.36369
F28: Profit Margin | G28: =G27/G14 -> 0.1954922123
B29: Borrower Cash at Closing | C29: =IF('Input Sheet'!B51<0.75,0,SUM('Input Sheet'!B51-0.75)*C11) -> 0 | F29: monthly interest due | G29: =G23/12 -> 1050.504888
B30: Borrower Equity | C30: ='Input Sheet'!B34 -> 27000
B31: Total Borrower Equity | C31: =C29+C30 -> 27000 | F31: Borrower Cash at Closing | G31: =C29 -> 0
B32: Total Loan (closing) | C32: ='Input Sheet'!B47-C29 -> 189277.6363 | F32: Total Borrower Equity | G32: =C31 -> 27000
B33: LTV | C33: =C32/C11 -> 0.6641320572 | F33: Total Loan (closing) | G33: =C32 -> 189277.6363
B34: LTC | C34: ='Input Sheet'!B46/'Input Sheet'!B23 -> 0.86093012 | F34: LTV | G34: =G33/G11 -> 0.6641320572
F35: LTC | G35: =(G33-G24)/(G25-G24) -> 0.874115373
B36: Vertical Cost PSF | C36: =C17/C5 -> 58.49678112
B37: Vertical and Land | C37: =C16+C17 -> 190557 | F37: Sales Price PSF | G37: =G11/G5 -> 101.9313305
B38: Total Project with Financing | C38: =C24/C5 -> 77.08427622 | F38: Vertical Cost PSF | G38: =C36 -> 58.49678112
F39: Vertical and Land | G39: =C37 -> 190557
F40: Total Project w/ Financing | G40: =C38 -> 77.08427622

Sheet Rental Analysis
B7: Gross Square Feet (AC) | C7: ='Input Sheet'!B8 -> 2796
B8: Square Feet (AC) | C8: ='Input Sheet'!B9 -> 2400
B9: Monthly Rent | C9: =0.009*'Input Sheet'!B10 -> 2565
B10: Rent PSF | C10: =C9/C7 -> 0.9173819742
B12: Gross Rent | C12: =C9*12 -> 30780
B13: Less Vacancy | C13: =C9*-1 -> -2565
B14: Net Revenue | C14: =C12+C13 -> 28215
B16: Utilities | C16: 150
B17: Insurance | C17: 500
B18: Lawn | C18: 600
B19: General R&M | C19: 500
B20: Move-In/Out | C20: 250
B21: Property Taxes | C21: 0
B22: Other | C22: 0
B23: Leasing/Mgt | C23: 1080
B24: Total | C24: =SUM(C16:C23) -> 3080
B26: Net Cash Flow | C26: =C14-C24 -> 25135
B28: Cap Rate | C28: =7% -> 0.07
B30: Indicative Value | C30: =C26/C28 -> 359071.4286
B31: Value per SQFT | C31: =C30/C7 -> 128.4232577

Sheet Math
A12: Total Loan Amount | E12: ='Input Sheet'!B47 -> 189277.6363
A13: Note Rate (MAX) | C13: 0.09298117701 | F13: =E12*C13 -> 17599.25741 | G13: Annual
A14: Divide by | C14: 12 | D14: months = | E14: =F13/C14 -> 1466.604784 | F14: per month
B15: 12 | C15: months x | E15: =E14 -> 1466.604784 | F15: monthly = | G15: =B15*E15 -> 17599.25741
G16: Interest Reserve
A19: Mainsail Fees
A21: Points | D21: ='Input Sheet'!B38 -> 7003.365922
A22: Inspection(s) | D22: 750 | E22: Gross Loan Amount | G22: =E12 -> 189277.6363
A23: Processing | D23: 750
A24: Underwriting | D24: 650 | E24: Less Interest Reserve | G24: =G15 -> 17599.25741
A25: Wire | D25: 30
A26: Interest on IR | D26: =F40 -> 1636.399668 | E26: Net Loan Amount*** | G26: =G22-G24 -> 171678.3789
E28: Interest on IR | F28: =G28/E12 -> 0.008645499278 | G28: =B40*D40 -> 1636.399668
A29: Total: | D29: =SUM(D21:D25)+D27+D26 -> 10819.76559
D32: Interest charged on Interest Reserve:
B34: =G26 -> 171678.3789 | C34: x | D34: =C13 -> 0.09298117701 | E34: = | F34: =B34*D34 -> 15962.85774
B36: =F13 -> 17599.25741 | C36: - | D36: =F34 -> 15962.85774 | E36: = | F36: =B36-D36 -> 1636.399668
B38: =F36 -> 1636.399668 | C38: ÷ | D38: =C14 -> 12 | E38: = | F38: =B38/D38 -> 136.366639
B40: =F38 -> 136.366639 | C40: x | D40: =B15 -> 12 | E40: = | F40: =B40*D40 -> 1636.399668
C43: Effective Rate of Interest Result:
B45: =D29 -> 10819.76559 | C45: ÷ | D45: =G26 -> 171678.3789 | E45: = | F45: =B45/D45 -> 0.06302346084
B47: =F45/B49 -> 0.06302346084 | C47: + | D47: =F47-B47 -> 0.1167765392 | E47: = | F47: =17.98% -> 0.1798
D48: Note Rate | F48: ERI
A49: Term | B49: 1
A50: in yrs | B50: 12 months
A55: Executive Team Signature for Closing
A58: x | F58: Date:
B59: David C. Griggs

Sheet Builder Finance (hidden)
D2: ='Input Sheet'!A3 -> Franklin Street
E3: Builder Finance | I3: Month 1 | J3: Month 2 | K3: Month 3 | L3: Month 4 | M3: Month 5 | N3: Month 6 | O3: Month 7 | P3: Month 8 | Q3: Total
C4: 0.06 | D4: Points | E4: =E9*C4 -> 8532 | H4: Disbursed | J4: 0 | K4: 0.28 | L4: 0.17 | M4: 0.33 | N4: 0.22 | O4: completed | P4: closed
C5: =8.75% -> 0.0875 | D5: Loan | E5: 13245.3
D6: LIP | E6: 115500 | H6: Mainsail | I6: =($E$11*$G$7)/12 -> 355.5 | J6: 355.5 | K6: 355.5 | L6: 355.5 | M6: 355.5 | N6: 355.5 | O6: 355.5 | P6: 355.5 | Q6: =SUM(I6:P6) -> 2844
D7: Fees | E7: 2180 | G7: 0.1 | H7: Cost | I7: =E4+E5+(E10-E9)+E7+E8 -> 26700.3 | J7: 0 | K7: =J8 -> 15959.7 | L7: 0 | M7: 0 | N7: 0 | O7: 0 | P7: 0
D8: Proccesing+A/L | E8: 2743 | H8: Remaining | I8: =E11-I7 -> 15959.7 | J8: =I8-J7 -> 15959.7 | K8: 0 | L8: 0 | M8: 0 | N8: 0 | O8: 0 | P8: 0
D9: TL interest and points | E9: 142200 | H9: Builder Finance | I9: 0 | J9: =($E$6*J4) -> 0 | K9: =(K10*$G$10)/12 -> 136.5025 | L9: =((L10+K10)*$G$10)/12 -> 300.1275 | M9: =((M10+L10+K10)*$G$10)/12 -> 617.7525 | N9: =((N10+M10+L10+K10)*$G$10)/12 -> 829.5025 | O9: =N9 -> 829.5025 | P9: =O9 -> 829.5025 | Q9: =SUM(I9:P9) -> 3542.89
D10: TL+ FEES(recording) | E10: 142200 | G10: 0.1 | H10: Cost | I10: 0 | J10: 0 | K10: =($E$6*K4)-K7 -> 16380.3 | L10: =($E$6*L4) -> 19635 | M10: =($E$6*M4) -> 38115 | N10: =($E$6*N4) -> 25410
D11: Mainsail | E11: =E10-E12 -> 42660 | H11: Remaining | I11: 0 | J11: =$E$12-J10 -> 99540 | K11: =J11-K10 -> 83159.7 | L11: =K11-L10 -> 63524.7 | M11: =L11-M10 -> 25409.7 | N11: =M11-N10 -> -0.3
D12: Builder finance | E12: =E10*0.7 -> 99540 | H12: Total interest cost | I12: =I6+I9 -> 355.5 | J12: =J6+J9 -> 355.5 | K12: =K6+K9 -> 492.0025 | L12: 655.6275 | M12: 973.2525 | N12: 1185.0025 | O12: 1185.0025 | P12: 1185.0025 | Q12: =SUM(I12:P12) -> 6386.89
H13: Total Project Draw | K13: =$E$6*K4 -> 32340 | L13: =$E$6*L4 -> 19635 | M13: 38115 | N13: 25410 | O13: =SUM(K13:N13) -> 115500
D14: ACV | E14: 200000 | H14: Mainsail Inflow | I14: 0 | J14: =$E$5/12 -> 1103.775 | K14: 1103.775 | L14: 1103.775 | M14: 1103.775 | N14: 1103.775 | O14: 1103.775 | P14: 1103.775
D15: LTV | E15: =E10/E14 -> 0.711 | H15: Net Intrest | I15: =I14-I12 -> -355.5 | J15: =J14-J12 -> 748.275 | K15: 611.7725 | L15: 448.1475 | M15: 130.5225 | N15: -81.2275 | O15: -81.2275 | P15: -81.2275 | Q15: =SUM(I15:P15) -> 1339.535
D17: Builder Finance to Loan | E17: =E12/E6 -> 0.8618181818 | H17: Cost of Funds | I17: =(I12*12)/$E$10 -> 0.03 | J17: =(J12*12)/$E$10 -> 0.03 | K17: 0.04151919831 | L17: 0.05532721519 | M17: 0.08213101266 | N17: 0.100000211 | O17: 0.100000211 | P17: 0.100000211 | Q17: =AVERAGE(I17:P17) -> 0.06737225738
D18: LTV (Builder Finance) | E18: =E12/E14 -> 0.4977
H19: Builder interest*7 | I19: =(E5/12)*7 -> 7726.425
H20: Points | I20: =E4 -> 8532 | L20: ONLY MAINSAIL | N20: FACTOR
H21: Fees | I21: =E7 -> 2180 | L21: =I20+I19+I21-((E10*10%)/8) -> 16660.925 | N21: =L24/L21 -> 2.411137637
H22: (Mainsail investor) | I22: =-Q6 -> -2844
H23: (Builder Finance) | I23: =-Q9 -> -3542.89 | J23: Return | L23: TOTAL ON SAME AMOUNT
H24: Total | I24: =SUM(I19:I23) -> 12051.535 | J24: =I24/E11 -> 0.2825019925 | L24: =I24*(150/45) -> 40171.78333

Sheet Western Union (hidden)
D2: ='Input Sheet'!A3 -> Franklin Street
E3: MAN FUND | I3: Month 1 | J3: Month 2 | K3: Month 3 | L3: Month 4 | M3: Month 5 | N3: Month 6 | O3: Month 7 | P3: Month 8 | Q3: Total
C4: ='Input Sheet'!B31 -> 0.0375 | D4: Points | E4: ='Input Sheet'!B38 -> 7003.365922 | H4: Disbursed | J4: 0 | K4: 0.28 | L4: 0.17 | M4: 0.33 | N4: 0.22 | O4: completed | P4: closed
C5: ='Input Sheet'!B30 -> 0.0675 | D5: Loan | E5: ='Input Sheet'!B37 -> 12606.05866
D6: LIP | E6: ='Input Sheet'!B17 -> 163557 | H6: Mainsail | I6: =($E$11*$G$7)/12 -> 552.0597726 | J6: 552.0597726 | K6: 552.0597726 | L6: 552.0597726 | M6: 552.0597726 | N6: 552.0597726 | O6: 552.0597726 | P6: 552.0597726 | Q6: =SUM(I6:P6) -> 4416.478181
D7: Fees | E7: 2180 | G7: 0.1 | H7: Cost | I7: =E4+E5+(E10-E9)+E7+E8 -> 25720.63631 | J7: 0 | K7: =J8 -> 40526.5364 | L7: 0 | M7: 0 | N7: 0 | O7: 0 | P7: 0
D8: Proccesing+A/L | E8: =1410 -> 1410 | H8: Remaining | I8: =E11-I7 -> 40526.5364 | J8: =I8-J7 -> 40526.5364 | K8: 0 | L8: 0 | M8: 0 | N8: 0 | O8: 0 | P8: 0
D9: TL interest and points | E9: ='Input Sheet'!B36 -> 186756.4246 | H9: Builder Finance | I9: 0 | J9: =($E$6*J4) -> 0 | K9: =(K10*$G$10)/12 -> 21.95593168 | L9: =((L10+K10)*$G$10)/12 -> 137.8088067 | M9: =((M10+L10+K10)*$G$10)/12 -> 362.6996817 | N9: =((N10+M10+L10+K10)*$G$10)/12 -> 512.6269317 | O9: =N9 -> 512.6269317 | P9: =O9 -> 512.6269317 | Q9: =SUM(I9:P9) -> 2060.345215
D10: TL+ FEES(recording) | E10: ='Input Sheet'!B47 -> 189277.6363 | G10: 0.05 | H10: Cost | I10: 0 | J10: 0 | K10: =($E$6*K4)-K7 -> 5269.423603 | L10: =($E$6*L4) -> 27804.69 | M10: =($E$6*M4) -> 53973.81 | N10: =($E$6*N4) -> 35982.54
D11: Mainsail | E11: =E10-E12 -> 66247.17271 | H11: Remaining | I11: 0 | J11: =$E$12-J10 -> 123030.4636 | K11: =J11-K10 -> 117761.04 | L11: =K11-L10 -> 89956.35 | M11: =L11-M10 -> 35982.54 | N11: =M11-N10 -> 0
D12: Builder finance | E12: =E10*0.65 -> 123030.4636 | H12: Total interest cost | I12: =I6+I9 -> 552.0597726 | J12: =J6+J9 -> 552.0597726 | K12: =K6+K9 -> 574.0157043 | L12: 689.8685793 | M12: 914.7594543 | N12: 1064.686704 | O12: 1064.686704 | P12: 1064.686704 | Q12: =SUM(I12:P12) -> 6476.823396
H13: Total Project Draw | K13: =$E$6*K4 -> 45795.96 | L13: =$E$6*L4 -> 27804.69 | M13: 53973.81 | N13: 35982.54 | O13: =SUM(K13:N13) -> 163557
D14: ACV | E14: ='Input Sheet'!B10 -> 285000 | H14: Mainsail Inflow | I14: 0 | J14: =$E$5/12 -> 1050.504888 | K14: 1050.504888 | L14: 1050.504888 | M14: 1050.504888 | N14: 1050.504888 | O14: 1050.504888 | P14: 1050.504888
D15: LTV | E15: =E10/E14 -> 0.6641320572 | H15: Net Intrest | I15: =I14-I12 -> -552.0597726 | J15: =J14-J12 -> 498.4451157 | K15: 476.489184 | L15: 360.636309 | M15: 135.745434 | N15: -14.18181599 | O15: -14.18181599 | P15: -14.18181599 | Q15: =SUM(I15:P15) -> 876.7108222
D17: MAN FUND to Loan | E17: =E12/E6 -> 0.7522176587 | H17: Cost of Funds | I17: =(I12*12)/$E$10 -> 0.035 | J17: =(J12*12)/$E$10 -> 0.035 | K17: 0.03639198262 | L17: 0.04373693117 | M17: 0.05799477247 | N17: 0.0675 | O17: 0.0675 | P17: 0.0675 | Q17: =AVERAGE(I17:P17) -> 0.05132796078
D18: LTV (MAN FUND) | E18: =E12/E14 -> 0.4316858372
H19: Builder interest*7 | I19: =(E5/12)*7 -> 7353.534218
H20: Points | I20: =E4 -> 7003.365922 | L20: ONLY MAINSAIL | N20: FACTOR
H21: Fees | I21: =E7 -> 2180 | L21: =I20+I19+I21-((E10*10%)/8) -> 14170.92969 | N21: =L24/L21 -> 2.366364797
H22: (Mainsail investor) | I22: =-Q6 -> -4416.478181
H23: (Builder Finance) | I23: =-Q9 -> -2060.345215 | J23: Return | L23: TOTAL ON SAME AMOUNT
H24: Total | I24: =SUM(I19:I23) -> 10060.07674 | J24: =I24/E11 -> 0.1518566957 | L24: =I24*(150/45) -> 33533.58915

Sheet MAN GROUP Auto (hidden)
D2: ='Input Sheet'!A3 -> Franklin Street
E3: MAN FUND | I3: Month 1 | J3: Month 2 | K3: Month 3 | L3: Month 4 | M3: Month 5 | N3: Month 6 | O3: Month 7 | P3: Month 8 | Q3: Total
C4: ='Input Sheet'!B31 -> 0.0375 | D4: Points | E4: ='Input Sheet'!B38 -> 7003.365922 | H4: Disbursed | J4: 0 | K4: 0.28 | L4: 0.17 | M4: 0.33 | N4: 0.22 | O4: completed | P4: closed
C5: ='Input Sheet'!B30 -> 0.0675 | D5: Loan | E5: ='Input Sheet'!B37 -> 12606.05866
D6: LIP | E6: ='Input Sheet'!B17 -> 163557 | H6: Mainsail | I6: =($E$11*$G$7)/12 -> 394.328409 | J6: 394.328409 | K6: 394.328409 | L6: 394.328409 | M6: 394.328409 | N6: 394.328409 | O6: 394.328409 | P6: 394.328409 | Q6: =SUM(I6:P6) -> 3154.627272
D7: Fees | E7: 2180 | G7: 0.1 | H7: Cost | I7: =E4+E5+(E10-E9)+E7+E8 -> 25720.63631 | J7: 0 | K7: =J8 -> 21598.77277 | L7: 0 | M7: 0 | N7: 0 | O7: 0 | P7: 0
D8: Proccesing+A/L | E8: =1410 -> 1410 | H8: Remaining | I8: =E11-I7 -> 21598.77277 | J8: =I8-J7 -> 21598.77277 | K8: 0 | L8: 0 | M8: 0 | N8: 0 | O8: 0 | P8: 0
D9: TL interest and points | E9: ='Input Sheet'!B36 -> 186756.4246 | H9: Builder Finance | I9: 0 | J9: =($E$6*J4) -> 0 | K9: =(K10*$G$10)/12 -> 100.8216135 | L9: =((L10+K10)*$G$10)/12 -> 216.6744885 | M9: =((M10+L10+K10)*$G$10)/12 -> 441.5653635 | N9: =((N10+M10+L10+K10)*$G$10)/12 -> 591.4926135 | O9: =N9 -> 591.4926135 | P9: =O9 -> 591.4926135 | Q9: =SUM(I9:P9) -> 2533.539306
D10: TL+ FEES(recording) | E10: ='Input Sheet'!B47 -> 189277.6363 | G10: 0.05 | H10: Cost | I10: 0 | J10: 0 | K10: =($E$6*K4)-K7 -> 24197.18723 | L10: =($E$6*L4) -> 27804.69 | M10: =($E$6*M4) -> 53973.81 | N10: =($E$6*N4) -> 35982.54
D11: Mainsail | E11: =E10-E12 -> 47319.40908 | H11: Remaining | I11: 0 | J11: =$E$12-J10 -> 141958.2272 | K11: =J11-K10 -> 117761.04 | L11: =K11-L10 -> 89956.35 | M11: =L11-M10 -> 35982.54 | N11: =M11-N10 -> 0
D12: Builder finance | E12: =E10*0.75 -> 141958.2272 | H12: Total interest cost | I12: =I6+I9 -> 394.328409 | J12: =J6+J9 -> 394.328409 | K12: =K6+K9 -> 495.1500225 | L12: 611.0028975 | M12: 835.8937725 | N12: 985.8210225 | O12: 985.8210225 | P12: 985.8210225 | Q12: =SUM(I12:P12) -> 5688.166578
H13: Total Project Draw | K13: =$E$6*K4 -> 45795.96 | L13: =$E$6*L4 -> 27804.69 | M13: 53973.81 | N13: 35982.54 | O13: =SUM(K13:N13) -> 163557
D14: ACV | E14: ='Input Sheet'!B10 -> 285000 | H14: Mainsail Inflow | I14: 0 | J14: =$E$5/12 -> 1050.504888 | K14: 1050.504888 | L14: 1050.504888 | M14: 1050.504888 | N14: 1050.504888 | O14: 1050.504888 | P14: 1050.504888
D15: LTV | E15: =E10/E14 -> 0.6641320572 | H15: Net Intrest | I15: =I14-I12 -> -394.328409 | J15: =J14-J12 -> 656.1764793 | K15: 555.3548658 | L15: 439.5019908 | M15: 214.6111158 | N15: 64.68386581 | O15: 64.68386581 | P15: 64.68386581 | Q15: =SUM(I15:P15) -> 1665.36764
D17: MAN FUND to Loan | E17: =E12/E6 -> 0.8679434523 | H17: Cost of Funds | I17: =(I12*12)/$E$10 -> 0.025 | J17: =(J12*12)/$E$10 -> 0.025 | K17: 0.03139198262 | L17: 0.03873693117 | M17: 0.05299477247 | N17: 0.0625 | O17: 0.0625 | P17: 0.0625 | Q17: =AVERAGE(I17:P17) -> 0.04507796078
D18: LTV (MAN FUND) | E18: =E12/E14 -> 0.4980990429
H19: Builder interest*7 | I19: =(E5/12)*7 -> 7353.534218
H20: Points | I20: =E4 -> 7003.365922 | L20: ONLY MAINSAIL | N20: FACTOR
H21: Fees | I21: =E7 -> 2180 | L21: =I20+I19+I21-((E10*10%)/8) -> 14170.92969 | N21: =L24/L21 -> 2.551875283
H22: (Mainsail investor) | I22: =-Q6 -> -3154.627272
H23: (Builder Finance) | I23: =-Q9 -> -2533.539306 | J23: Return | L23: TOTAL ON SAME AMOUNT
H24: Total | I24: =SUM(I19:I23) -> 10848.73356 | J24: =I24/E11 -> 0.2292660406 | L24: =I24*(150/45) -> 36162.44521

Sheet BF automated (hidden)
D2: ='Input Sheet'!A3 -> Franklin Street
E3: Builder Finance | I3: Month 1 | J3: Month 2 | K3: Month 3 | L3: Month 4 | M3: Month 5 | N3: Month 6 | O3: Month 7 | P3: Month 8 | Q3: Total
C4: ='Input Sheet'!B31 -> 0.0375 | D4: Points | E4: ='Input Sheet'!B38 -> 7003.365922 | H4: Disbursed | J4: 0 | K4: 0.28 | L4: 0.17 | M4: 0.33 | N4: 0.22 | O4: completed | P4: closed
C5: ='Input Sheet'!B30 -> 0.0675 | D5: Loan | E5: ='Input Sheet'!B37 -> 12606.05866
D6: LIP | E6: ='Input Sheet'!B17 -> 163557 | H6: Mainsail | I6: =($E$11*$G$7)/12 -> 473.1940908 | J6: 473.1940908 | K6: 473.1940908 | L6: 473.1940908 | M6: 473.1940908 | N6: 473.1940908 | O6: 473.1940908 | P6: 473.1940908 | Q6: =SUM(I6:P6) -> 3785.552726
D7: Fees | E7: 2180 | G7: 0.1 | H7: Cost | I7: =E4+E5+(E10-E9)+E7+E8 -> 25720.63631 | J7: 0 | K7: =J8 -> 31062.65458 | L7: 0 | M7: 0 | N7: 0 | O7: 0 | P7: 0
D8: Proccesing+A/L | E8: =1410 -> 1410 | H8: Remaining | I8: =E11-I7 -> 31062.65458 | J8: =I8-J7 -> 31062.65458 | K8: 0 | L8: 0 | M8: 0 | N8: 0 | O8: 0 | P8: 0
D9: TL interest and points | E9: ='Input Sheet'!B36 -> 186756.4246 | H9: Builder Finance | I9: 0 | J9: =($E$6*J4) -> 0 | K9: =(K10*$G$10)/12 -> 122.7775452 | L9: =((L10+K10)*$G$10)/12 -> 354.4832952 | M9: =((M10+L10+K10)*$G$10)/12 -> 804.2650452 | N9: =((N10+M10+L10+K10)*$G$10)/12 -> 1104.119545 | O9: =N9 -> 1104.119545 | P9: =O9 -> 1104.119545 | Q9: =SUM(I9:P9) -> 4593.884521
D10: TL+ FEES(recording) | E10: ='Input Sheet'!B47 -> 189277.6363 | G10: 0.1 | H10: Cost | I10: 0 | J10: 0 | K10: =($E$6*K4)-K7 -> 14733.30542 | L10: =($E$6*L4) -> 27804.69 | M10: =($E$6*M4) -> 53973.81 | N10: =($E$6*N4) -> 35982.54
D11: Mainsail | E11: =E10-E12 -> 56783.29089 | H11: Remaining | I11: 0 | J11: =$E$12-J10 -> 132494.3454 | K11: =J11-K10 -> 117761.04 | L11: =K11-L10 -> 89956.35 | M11: =L11-M10 -> 35982.54 | N11: =M11-N10 -> 0
D12: Builder finance | E12: =E10*0.7 -> 132494.3454 | H12: Total interest cost | I12: =I6+I9 -> 473.1940908 | J12: =J6+J9 -> 473.1940908 | K12: =K6+K9 -> 595.9716359 | L12: 827.6773859 | M12: 1277.459136 | N12: 1577.313636 | O12: 1577.313636 | P12: 1577.313636 | Q12: =SUM(I12:P12) -> 8379.437247
H13: Total Project Draw | K13: =$E$6*K4 -> 45795.96 | L13: =$E$6*L4 -> 27804.69 | M13: 53973.81 | N13: 35982.54 | O13: =SUM(K13:N13) -> 163557
D14: ACV | E14: ='Input Sheet'!B10 -> 285000 | H14: Mainsail Inflow | I14: 0 | J14: =$E$5/12 -> 1050.504888 | K14: 1050.504888 | L14: 1050.504888 | M14: 1050.504888 | N14: 1050.504888 | O14: 1050.504888 | P14: 1050.504888
D15: LTV | E15: =E10/E14 -> 0.6641320572 | H15: Net Intrest | I15: =I14-I12 -> -473.1940908 | J15: =J14-J12 -> 577.3107975 | K15: 454.5332523 | L15: 222.8275023 | M15: -226.9542477 | N15: -526.8087477 | O15: -526.8087477 | P15: -526.8087477 | Q15: =SUM(I15:P15) -> -1025.903029
D17: Builder Finance to Loan | E17: =E12/E6 -> 0.8100805555 | H17: Cost of Funds | I17: =(I12*12)/$E$10 -> 0.03 | J17: =(J12*12)/$E$10 -> 0.03 | K17: 0.03778396524 | L17: 0.05247386234 | M17: 0.08098954493 | N17: 0.1 | O17: 0.1 | P17: 0.1 | Q17: =AVERAGE(I17:P17) -> 0.06640592156
D18: LTV (Builder Finance) | E18: =E12/E14 -> 0.4648924401
H19: Builder interest*7 | I19: =(E5/12)*7 -> 7353.534218
H20: Points | I20: =E4 -> 7003.365922 | L20: ONLY MAINSAIL | N20: FACTOR
H21: Fees | I21: =E7 -> 2180 | L21: =I20+I19+I21-((E10*10%)/8) -> 14170.92969 | N21: =L24/L21 -> 1.918825622
H22: (Mainsail investor) | I22: =-Q6 -> -3785.552726
H23: (Builder Finance) | I23: =-Q9 -> -4593.884521 | J23: Return | L23: TOTAL ON SAME AMOUNT
H24: Total | I24: =SUM(I19:I23) -> 8157.462892 | J24: =I24/E11 -> 0.1436595654 | L24: =I24*(150/45) -> 27191.54297
